[Event "*** Titled Tuesday Blitz"]
[Site "Chess.com"]
[Date "2020.04.14"]
[Round "5"]
[White "Lysiak_Poltorak"]
[Black "Apocalyps999"]
[Result "1-0"]
[WhiteElo "2249"]
[BlackElo "2385"]
[TimeControl "180+1"]
[EndTime "10:51:24 PDT"]
[Termination "Lysiak_Poltorak won by resignation"]

1. e4 {[%clk 0:03:00.9]} 1... c5 {[%clk 0:02:41.1]} 2. Nc3 {[%clk 0:03:00.2]}
2... a6 {[%clk 0:02:40.1]} 3. g3 {[%clk 0:02:58.8]} 3... b5 {[%clk 0:02:40.2]}
4. Bg2 {[%clk 0:02:59]} 4... Bb7 {[%clk 0:02:41.1]} 5. Nge2 {[%clk 0:02:56.6]}
5... d6 {[%clk 0:02:39.9]} 6. d3 {[%clk 0:02:54.1]} 6... e6 {[%clk 0:02:39.9]}
7. O-O {[%clk 0:02:53]} 7... Nf6 {[%clk 0:02:39]} 8. Bg5 {[%clk 0:02:44.5]} 8...
Qc7 {[%clk 0:02:26]} 9. Qd2 {[%clk 0:02:34.8]} 9... Be7 {[%clk 0:02:24.7]} 10.
f4 {[%clk 0:02:32.2]} 10... Nbd7 {[%clk 0:02:22.6]} 11. Rae1 {[%clk 0:02:29.5]}
11... h6 {[%clk 0:02:18.5]} 12. Bxf6 {[%clk 0:02:29.2]} 12... gxf6 {[%clk
0:02:17.8]} 13. f5 {[%clk 0:02:28.7]} 13... O-O-O {[%clk 0:02:13.5]} 14. Bh3
{[%clk 0:02:25.3]} 14... e5 {[%clk 0:02:12.5]} 15. Nd5 {[%clk 0:02:19.9]} 15...
Bxd5 {[%clk 0:02:10.1]} 16. exd5 {[%clk 0:02:18.9]} 16... h5 {[%clk 0:02:09.8]}
17. c4 {[%clk 0:02:11.8]} 17... h4 {[%clk 0:02:04.3]} 18. g4 {[%clk 0:02:09.9]}
18... Bf8 {[%clk 0:02:00.9]} 19. Nc3 {[%clk 0:02:05.9]} 19... b4 {[%clk
0:01:59.1]} 20. Ne4 {[%clk 0:02:05.4]} 20... Bh6 {[%clk 0:01:58.3]} 21. Qc2
{[%clk 0:01:57.2]} 21... Rdg8 {[%clk 0:01:52.6]} 22. a3 {[%clk 0:01:55.4]} 22...
Qb6 {[%clk 0:01:29.3]} 23. Kh1 {[%clk 0:01:48.3]} 23... Bf4 {[%clk 0:01:27.4]}
24. axb4 {[%clk 0:01:45.2]} 24... Qxb4 {[%clk 0:01:26.3]} 25. Ra1 {[%clk
0:01:44.6]} 25... Qb6 {[%clk 0:01:25.2]} 26. Qa4 {[%clk 0:01:38.7]} 26... Nb8
{[%clk 0:01:21.7]} 27. b4 {[%clk 0:01:15.5]} 27... Qxb4 {[%clk 0:01:16.9]} 28.
Qxb4 {[%clk 0:01:12]} 28... cxb4 {[%clk 0:01:17.8]} 29. Nxd6+ {[%clk 0:01:10.8]}
29... Kd7 {[%clk 0:01:18]} 30. Ne4 {[%clk 0:01:07.7]} 30... Rc8 {[%clk
0:01:15.4]} 31. Nxf6+ {[%clk 0:01:05.1]} 31... Ke7 {[%clk 0:01:15.3]} 32. Ne4
{[%clk 0:01:04.6]} 32... Nd7 {[%clk 0:01:14.9]} 33. f6+ {[%clk 0:01:00.5]} 33...
Nxf6 {[%clk 0:01:13.6]} 34. Nxf6 {[%clk 0:00:59.7]} 34... Kxf6 {[%clk
0:01:14.4]} 35. g5+ {[%clk 0:00:58.4]} 35... Kxg5 {[%clk 0:01:14.7]} 36. Bxc8
{[%clk 0:00:58.2]} 36... Rxc8 {[%clk 0:01:15.6]} 37. Rxa6 {[%clk 0:00:55.9]}
37... Rb8 {[%clk 0:01:15.1]} 38. Ra5 {[%clk 0:00:34.8]} 38... h3 {[%clk
0:00:48.2]} 39. c5 {[%clk 0:00:20.4]} 39... b3 {[%clk 0:00:46.6]} 40. c6 {[%clk
0:00:16.6]} 40... e4 {[%clk 0:00:44.6]} 41. d6+ {[%clk 0:00:12.4]} 41... Kf6
{[%clk 0:00:43.7]} 42. c7 {[%clk 0:00:11.8]} 42... Rg8 {[%clk 0:00:43.1]} 43. d7
{[%clk 0:00:09.1]} 43... Ke7 {[%clk 0:00:42.5]} 44. d8=Q+ {[%clk 0:00:08.2]}
44... Rxd8 {[%clk 0:00:42.3]} 45. cxd8=Q+ {[%clk 0:00:08.1]} 45... Kxd8 {[%clk
0:00:43.2]} 46. Rxf4 {[%clk 0:00:08.2]} 46... b2 {[%clk 0:00:43.4]} 47. Rb5
{[%clk 0:00:08.2]} 47... exd3 {[%clk 0:00:42]} 48. Rd4+ {[%clk 0:00:08.3]} 1-0

[Event "*** Titled Tuesday Blitz"]
[Site "Chess.com"]
[Date "2020.04.14"]
[Round "5"]
[White "Bad_left_hook"]
[Black "Harsha_Bharathakoti"]
[Result "0-1"]
[WhiteElo "2567"]
[BlackElo "2800"]
[TimeControl "180+1"]
[EndTime "10:51:25 PDT"]
[Termination "Harsha_Bharathakoti won by resignation"]

1. d4 {[%clk 0:03:00.9]} 1... Nf6 {[%clk 0:02:59.1]} 2. c4 {[%clk 0:03:00.8]}
2... g6 {[%clk 0:02:59.7]} 3. Nc3 {[%clk 0:02:59.8]} 3... d5 {[%clk 0:03:00.3]}
4. cxd5 {[%clk 0:02:59.4]} 4... Nxd5 {[%clk 0:03:01.2]} 5. e4 {[%clk 0:03:00.2]}
5... Nxc3 {[%clk 0:03:01.7]} 6. bxc3 {[%clk 0:03:01.1]} 6... Bg7 {[%clk
0:03:02.6]} 7. Nf3 {[%clk 0:03:01.2]} 7... c5 {[%clk 0:03:03]} 8. Rb1 {[%clk
0:03:01.7]} 8... Qa5 {[%clk 0:03:02.8]} 9. Rb5 {[%clk 0:02:52.8]} 9... Qxc3+
{[%clk 0:02:57.6]} 10. Bd2 {[%clk 0:02:52.1]} 10... Qa3 {[%clk 0:02:58.2]} 11.
Rxc5 {[%clk 0:02:49.8]} 11... O-O {[%clk 0:02:58.6]} 12. Bc1 {[%clk 0:02:20.3]}
12... Qb4+ {[%clk 0:02:52.8]} 13. Bd2 {[%clk 0:02:19.7]} 13... Qb6 {[%clk
0:02:49.7]} 14. Be3 {[%clk 0:02:03.1]} 14... Bg4 {[%clk 0:02:21.4]} 15. Be2
{[%clk 0:01:55]} 15... Rd8 {[%clk 0:02:11.4]} 16. O-O {[%clk 0:01:42.4]} 16...
Qxc5 {[%clk 0:02:06.1]} 17. dxc5 {[%clk 0:01:42.9]} 17... Rxd1 {[%clk 0:02:07]}
18. Rxd1 {[%clk 0:01:42.4]} 18... Nc6 {[%clk 0:02:07.6]} 19. h3 {[%clk
0:01:34.9]} 19... Be6 {[%clk 0:02:01.2]} 20. Ng5 {[%clk 0:01:30.3]} 20... Bxa2
{[%clk 0:02:00.9]} 21. Rd7 {[%clk 0:01:29.9]} 21... h6 {[%clk 0:01:49.5]} 22.
Nf3 {[%clk 0:01:28]} 22... Rb8 {[%clk 0:01:49.4]} 23. Bb5 {[%clk 0:01:24.2]}
23... a5 {[%clk 0:01:03.3]} 24. Bf4 {[%clk 0:01:10.5]} 24... e5 {[%clk
0:00:56.2]} 25. Bxc6 {[%clk 0:01:09.6]} 25... bxc6 {[%clk 0:00:41.5]} 26. Bxe5
{[%clk 0:01:00.5]} 26... Rb1+ {[%clk 0:00:26.3]} 27. Kh2 {[%clk 0:00:59.9]}
27... Rc1 {[%clk 0:00:27.2]} 28. Bd6 {[%clk 0:00:43]} 28... a4 {[%clk
0:00:11.5]} 29. Ra7 {[%clk 0:00:39.5]} 29... Bb3 {[%clk 0:00:09.9]} 30. Ne5
{[%clk 0:00:39.8]} 30... Re1 {[%clk 0:00:03.8]} 31. f3 {[%clk 0:00:30.3]} 31...
Rc1 {[%clk 0:00:02.5]} 32. Nxc6 {[%clk 0:00:28.9]} 32... Bb2 {[%clk 0:00:03.2]}
33. Ne7+ {[%clk 0:00:21.8]} 33... Kg7 {[%clk 0:00:03.2]} 34. c6 {[%clk
0:00:22.2]} 34... a3 {[%clk 0:00:03.2]} 35. Bxa3 {[%clk 0:00:21.2]} 35... Be5+
{[%clk 0:00:03.8]} 36. g3 {[%clk 0:00:16.5]} 36... Rc2+ {[%clk 0:00:04.4]} 37.
Kg1 {[%clk 0:00:15.8]} 37... Bd4+ {[%clk 0:00:04.6]} 38. Kf1 {[%clk 0:00:15.5]}
38... Bxa7 {[%clk 0:00:05.5]} 39. c7 {[%clk 0:00:14.4]} 39... Rxc7 {[%clk
0:00:05.1]} 40. Bb2+ {[%clk 0:00:13.8]} 40... f6 {[%clk 0:00:04.8]} 41. Nd5
{[%clk 0:00:14.7]} 41... Bxd5 {[%clk 0:00:04.7]} 42. exd5 {[%clk 0:00:15.6]}
42... Rd7 {[%clk 0:00:05.6]} 43. Ke2 {[%clk 0:00:15.6]} 43... Rxd5 {[%clk
0:00:06.2]} 44. Bc3 {[%clk 0:00:16.5]} 44... Bd4 {[%clk 0:00:06.7]} 45. Bd2
{[%clk 0:00:16.4]} 45... Be5 {[%clk 0:00:07.2]} 46. Be3 {[%clk 0:00:16.6]} 46...
Bxg3 {[%clk 0:00:07.3]} 0-1

[Event "*** Titled Tuesday Blitz"]
[Site "Chess.com"]
[Date "2020.04.14"]
[Round "5"]
[White "Andrii_Prydun"]
[Black "DanielRensch"]
[Result "0-1"]
[WhiteElo "2347"]
[BlackElo "2533"]
[TimeControl "180+1"]
[EndTime "10:51:25 PDT"]
[Termination "DanielRensch won by resignation"]

1. d4 {[%clk 0:03:00.9]} 1... Nf6 {[%clk 0:02:59.1]} 2. Nf3 {[%clk 0:03:00.1]}
2... c5 {[%clk 0:02:57.5]} 3. c3 {[%clk 0:02:58.9]} 3... b6 {[%clk 0:02:54.6]}
4. Bf4 {[%clk 0:02:50.4]} 4... Bb7 {[%clk 0:02:53.8]} 5. Nbd2 {[%clk 0:02:50.8]}
5... g6 {[%clk 0:02:53.1]} 6. h3 {[%clk 0:02:47.1]} 6... Bg7 {[%clk 0:02:52.3]}
7. e3 {[%clk 0:02:47.4]} 7... O-O {[%clk 0:02:50.3]} 8. Bc4 {[%clk 0:02:36.1]}
8... d5 {[%clk 0:02:44.9]} 9. Bd3 {[%clk 0:02:35.6]} 9... Ne4 {[%clk 0:02:43.8]}
10. Ne5 {[%clk 0:02:30.2]} 10... Nd7 {[%clk 0:02:41.3]} 11. Ndf3 {[%clk
0:02:28.8]} 11... f6 {[%clk 0:02:32.5]} 12. Nxd7 {[%clk 0:02:23.4]} 12... Qxd7
{[%clk 0:02:33.4]} 13. O-O {[%clk 0:02:22.8]} 13... Rae8 {[%clk 0:02:23.3]} 14.
Bh2 {[%clk 0:02:19.9]} 14... Nd6 {[%clk 0:02:12.4]} 15. Re1 {[%clk 0:01:28.5]}
15... e5 {[%clk 0:02:05.8]} 16. dxe5 {[%clk 0:01:28.2]} 16... fxe5 {[%clk
0:02:05.5]} 17. e4 {[%clk 0:01:28.5]} 17... d4 {[%clk 0:01:55.4]} 18. cxd4
{[%clk 0:01:24.8]} 18... exd4 {[%clk 0:01:54.9]} 19. Nd2 {[%clk 0:01:14.5]}
19... Kh8 {[%clk 0:01:18.3]} 20. Rb1 {[%clk 0:00:59.8]} 20... Rc8 {[%clk
0:00:53.2]} 21. b4 {[%clk 0:00:53.8]} 21... Nb5 {[%clk 0:00:43.3]} 22. Qa4
{[%clk 0:00:35.6]} 22... Bc6 {[%clk 0:00:41.1]} 23. Qb3 {[%clk 0:00:21.9]} 23...
Nc3 {[%clk 0:00:39.2]} 24. Rbc1 {[%clk 0:00:21.5]} 24... Ba4 {[%clk 0:00:38.9]}
25. Qa3 {[%clk 0:00:21.5]} 25... Qf7 {[%clk 0:00:29.8]} 26. Bg3 {[%clk
0:00:18.8]} 26... c4 {[%clk 0:00:29.4]} 27. Bf1 {[%clk 0:00:15.1]} 27... b5
{[%clk 0:00:26.5]} 28. e5 {[%clk 0:00:12.6]} 28... Qe6 {[%clk 0:00:23.2]} 29.
Rxc3 {[%clk 0:00:10.8]} 29... dxc3 {[%clk 0:00:22.5]} 30. Qxc3 {[%clk
0:00:11.6]} 30... Rcd8 {[%clk 0:00:22.5]} 31. Ne4 {[%clk 0:00:10.9]} 31... Rfe8
{[%clk 0:00:21]} 32. Nc5 {[%clk 0:00:10.8]} 32... Qf5 {[%clk 0:00:18.9]} 33. Qc1
{[%clk 0:00:05.7]} 33... Bc2 {[%clk 0:00:17.2]} 34. e6 {[%clk 0:00:05]} 34...
Bd3 {[%clk 0:00:17]} 35. e7 {[%clk 0:00:04.6]} 35... Rd5 {[%clk 0:00:15]} 36.
Bxd3 {[%clk 0:00:04.2]} 36... cxd3 {[%clk 0:00:15.8]} 37. Qd2 {[%clk 0:00:04.5]}
37... Bf6 {[%clk 0:00:14.5]} 38. Re3 {[%clk 0:00:03.4]} 38... Rxe7 {[%clk
0:00:13.9]} 39. Rxd3 {[%clk 0:00:02.6]} 39... Rxd3 {[%clk 0:00:12.2]} 40. Qxd3
{[%clk 0:00:03]} 40... Qxd3 {[%clk 0:00:11.9]} 41. Nxd3 {[%clk 0:00:03.9]} 41...
Rd7 {[%clk 0:00:12.1]} 42. Nc5 {[%clk 0:00:04.3]} 42... Rd2 {[%clk 0:00:12.1]}
43. Ne4 {[%clk 0:00:03.1]} 43... Rd1+ {[%clk 0:00:11]} 44. Kh2 {[%clk
0:00:02.8]} 44... Kg7 {[%clk 0:00:11.5]} 45. Nd6 {[%clk 0:00:02.8]} 45... Ra1
{[%clk 0:00:09.4]} 46. Ne8+ {[%clk 0:00:03.7]} 46... Kf7 {[%clk 0:00:09.2]} 47.
Nd6+ {[%clk 0:00:04.6]} 47... Ke6 {[%clk 0:00:09.6]} 48. Nxb5 {[%clk 0:00:05.5]}
48... Rxa2 {[%clk 0:00:09.8]} 49. Nc7+ {[%clk 0:00:06.4]} 49... Kd7 {[%clk
0:00:09.4]} 50. Nb5 {[%clk 0:00:07.3]} 50... a6 {[%clk 0:00:08.5]} 51. Nc3
{[%clk 0:00:07.6]} 51... Bxc3 {[%clk 0:00:08.4]} 0-1

[Event "*** Titled Tuesday Blitz"]
[Site "Chess.com"]
[Date "2020.04.14"]
[Round "5"]
[White "Jagerrmeisterr"]
[Black "Etoilegeniale"]
[Result "1-0"]
[WhiteElo "2686"]
[BlackElo "2509"]
[TimeControl "180+1"]
[EndTime "10:51:26 PDT"]
[Termination "Jagerrmeisterr won on time"]

1. e4 {[%clk 0:03:00.9]} 1... c5 {[%clk 0:02:55.1]} 2. Nc3 {[%clk 0:03:01.2]}
2... Nc6 {[%clk 0:02:53.7]} 3. g3 {[%clk 0:03:01.3]} 3... g6 {[%clk 0:02:52.7]}
4. Bg2 {[%clk 0:03:01.9]} 4... Bg7 {[%clk 0:02:52]} 5. d3 {[%clk 0:03:02.8]}
5... d6 {[%clk 0:02:49.4]} 6. Be3 {[%clk 0:03:03.2]} 6... Rb8 {[%clk 0:02:48.5]}
7. Qd2 {[%clk 0:03:00]} 7... b5 {[%clk 0:02:48.2]} 8. h3 {[%clk 0:03:00.5]} 8...
b4 {[%clk 0:02:48.2]} 9. Nd1 {[%clk 0:03:00.9]} 9... e6 {[%clk 0:02:46.3]} 10.
Ne2 {[%clk 0:02:58.2]} 10... Nd4 {[%clk 0:02:42.7]} 11. Nc1 {[%clk 0:02:54.5]}
11... Ne7 {[%clk 0:02:40.5]} 12. c3 {[%clk 0:02:54.8]} 12... bxc3 {[%clk
0:02:40.5]} 13. bxc3 {[%clk 0:02:55.7]} 13... Ndc6 {[%clk 0:02:40.5]} 14. Bh6
{[%clk 0:02:55.6]} 14... O-O {[%clk 0:02:40.4]} 15. Bxg7 {[%clk 0:02:55.4]}
15... Kxg7 {[%clk 0:02:37.2]} 16. O-O {[%clk 0:02:55.7]} 16... e5 {[%clk
0:02:36.4]} 17. f4 {[%clk 0:02:50.9]} 17... f5 {[%clk 0:02:35.9]} 18. Ne3 {[%clk
0:02:50.7]} 18... Be6 {[%clk 0:02:27.7]} 19. g4 {[%clk 0:02:49]} 19... fxe4
{[%clk 0:02:11.9]} 20. f5 {[%clk 0:02:42.8]} 20... gxf5 {[%clk 0:02:07.9]} 21.
gxf5 {[%clk 0:02:42.5]} 21... Nxf5 {[%clk 0:02:05.1]} 22. Nxf5+ {[%clk
0:02:24.7]} 22... Bxf5 {[%clk 0:02:04]} 23. dxe4 {[%clk 0:02:24.5]} 23... Bg6
{[%clk 0:01:59.3]} 24. Ne2 {[%clk 0:02:23]} 24... Kh8 {[%clk 0:01:09.4]} 25. Ng3
{[%clk 0:02:13.3]} 25... Rg8 {[%clk 0:00:50.5]} 26. Rad1 {[%clk 0:02:04.5]}
26... Qh4 {[%clk 0:00:45]} 27. Qxd6 {[%clk 0:01:08.9]} 27... Qxg3 {[%clk
0:00:43.3]} 28. Qf6+ {[%clk 0:01:05.1]} 28... Rg7 {[%clk 0:00:42.1]} 29. Rf3
{[%clk 0:01:05.2]} 29... Qxg2+ {[%clk 0:00:16]} 30. Kxg2 {[%clk 0:01:05.2]}
30... Bxe4+ {[%clk 0:00:16.2]} 31. Kf2 {[%clk 0:01:01.8]} 31... Bxf3 {[%clk
0:00:15.4]} 32. Rd7 {[%clk 0:00:58.3]} 32... Rg8 {[%clk 0:00:13.2]} 33. Kxf3
{[%clk 0:00:52.8]} 33... e4+ {[%clk 0:00:12]} 34. Kxe4 {[%clk 0:00:50.6]} 34...
Re8+ {[%clk 0:00:10]} 35. Kd5 {[%clk 0:00:44]} 35... Ne7+ {[%clk 0:00:09.8]} 36.
Kc4 {[%clk 0:00:43]} 36... Kg8 {[%clk 0:00:09.6]} 37. Qe6+ {[%clk 0:00:41.9]}
37... Kf8 {[%clk 0:00:09.4]} 38. Rd3 {[%clk 0:00:38]} 38... Rf7 {[%clk
0:00:08.3]} 39. Re3 {[%clk 0:00:32.9]} 39... Rd8 {[%clk 0:00:07.2]} 40. a4
{[%clk 0:00:27.7]} 40... Ng6 {[%clk 0:00:06.6]} 41. Re4 {[%clk 0:00:25.3]} 41...
Kg8 {[%clk 0:00:03.3]} 42. h4 {[%clk 0:00:24.9]} 42... Kg7 {[%clk 0:00:02.1]}
43. h5 {[%clk 0:00:23.6]} 43... Nf8 {[%clk 0:00:02.4]} 44. h6+ {[%clk
0:00:22.8]} 44... Kg8 {[%clk 0:00:02]} 45. Rg4+ {[%clk 0:00:22.5]} 45... Ng6
{[%clk 0:00:02.2]} 46. Rxg6+ {[%clk 0:00:22.5]} 46... hxg6 {[%clk 0:00:02.4]}
47. Qxg6+ {[%clk 0:00:23.4]} 47... Kf8 {[%clk 0:00:02.8]} 48. h7 {[%clk
0:00:23.4]} 48... Ke7 {[%clk 0:00:02.1]} 49. Qg5+ {[%clk 0:00:22.2]} 1-0

[Event "*** Titled Tuesday Blitz"]
[Site "Chess.com"]
[Date "2020.04.14"]
[Round "5"]
[White "DinaBelenkaya"]
[Black "NiranjanNavalgund"]
[Result "0-1"]
[WhiteElo "2177"]
[BlackElo "2427"]
[TimeControl "180+1"]
[EndTime "10:51:26 PDT"]
[Termination "NiranjanNavalgund won on time"]

1. e4 {[%clk 0:03:00.9]} 1... e5 {[%clk 0:02:57.9]} 2. Nf3 {[%clk 0:02:59.7]}
2... Nc6 {[%clk 0:02:58]} 3. Nc3 {[%clk 0:02:55.7]} 3... Nf6 {[%clk 0:02:56.5]}
4. d4 {[%clk 0:02:55.7]} 4... exd4 {[%clk 0:02:57.4]} 5. Nxd4 {[%clk 0:02:55.9]}
5... Bb4 {[%clk 0:02:58]} 6. Nxc6 {[%clk 0:02:56]} 6... bxc6 {[%clk 0:02:58.9]}
7. Bd3 {[%clk 0:02:56.3]} 7... O-O {[%clk 0:02:58.3]} 8. O-O {[%clk 0:02:56.6]}
8... d5 {[%clk 0:02:57.3]} 9. exd5 {[%clk 0:02:56.5]} 9... cxd5 {[%clk
0:02:58.2]} 10. h3 {[%clk 0:01:56.2]} 10... Rb8 {[%clk 0:02:52.8]} 11. Bg5
{[%clk 0:01:54.9]} 11... Be6 {[%clk 0:02:52.7]} 12. Qf3 {[%clk 0:01:52.2]} 12...
Be7 {[%clk 0:02:50.7]} 13. b3 {[%clk 0:01:49.6]} 13... h6 {[%clk 0:02:50.6]} 14.
Bf4 {[%clk 0:01:48.8]} 14... Rb4 {[%clk 0:02:48.9]} 15. Ne2 {[%clk 0:01:48]}
15... Bd6 {[%clk 0:02:46.4]} 16. Rad1 {[%clk 0:01:45.1]} 16... c5 {[%clk
0:02:44.9]} 17. c4 {[%clk 0:01:44.2]} 17... d4 {[%clk 0:02:39.7]} 18. Rfe1
{[%clk 0:01:44.5]} 18... Rb6 {[%clk 0:02:31.6]} 19. Bxd6 {[%clk 0:01:27]} 19...
Rxd6 {[%clk 0:02:16]} 20. Nf4 {[%clk 0:01:25.1]} 20... Bd7 {[%clk 0:02:15.8]}
21. Re5 {[%clk 0:01:24.2]} 21... Qc7 {[%clk 0:02:03]} 22. Rde1 {[%clk
0:01:22.9]} 22... Re8 {[%clk 0:02:01.3]} 23. Nd5 {[%clk 0:01:16.8]} 23... Rxe5
{[%clk 0:01:56.3]} 24. Rxe5 {[%clk 0:01:15]} 24... Rxd5 {[%clk 0:01:51.9]} 25.
Rxd5 {[%clk 0:01:13.4]} 25... Nxd5 {[%clk 0:01:51.9]} 26. cxd5 {[%clk
0:01:11.3]} 26... Qe5 {[%clk 0:01:49.4]} 27. a4 {[%clk 0:01:06.7]} 27... g6
{[%clk 0:01:42]} 28. h4 {[%clk 0:00:51.4]} 28... Kg7 {[%clk 0:01:41.4]} 29. Bc4
{[%clk 0:00:35.6]} 29... a5 {[%clk 0:01:40.1]} 30. d6 {[%clk 0:00:25.4]} 30...
Qe8 {[%clk 0:00:40.8]} 31. Qd5 {[%clk 0:00:24.4]} 31... Bc6 {[%clk 0:00:30.6]}
32. Qxc5 {[%clk 0:00:24.1]} 32... Qe1+ {[%clk 0:00:30]} 33. Kh2 {[%clk 0:00:23]}
33... Qxf2 {[%clk 0:00:30.3]} 34. Qe5+ {[%clk 0:00:20.9]} 34... Kh7 {[%clk
0:00:28.6]} 35. Qg3 {[%clk 0:00:17.3]} 35... Qf6 {[%clk 0:00:27.3]} 36. h5
{[%clk 0:00:12.4]} 36... g5 {[%clk 0:00:23.1]} 37. Bd3+ {[%clk 0:00:11.9]} 37...
Kg7 {[%clk 0:00:23.4]} 38. Bc4 {[%clk 0:00:11.3]} 38... Bd7 {[%clk 0:00:21.2]}
39. Bd3 {[%clk 0:00:10.6]} 39... Qe6 {[%clk 0:00:18.1]} 40. Bc4 {[%clk
0:00:07.5]} 40... Qf5 {[%clk 0:00:18.4]} 41. Bd3 {[%clk 0:00:02.5]} 41... Qd5
{[%clk 0:00:17.6]} 42. Bc4 {[%clk 0:00:02.6]} 42... Qe4 {[%clk 0:00:17.4]} 43.
Bd3 {[%clk 0:00:02.6]} 43... Qe6 {[%clk 0:00:17.3]} 44. Bc4 {[%clk 0:00:02.7]}
44... Qf6 {[%clk 0:00:17.1]} 45. Bb5 {[%clk 0:00:02.6]} 45... Be6 {[%clk
0:00:15.1]} 46. d7 {[%clk 0:00:01.1]} 46... g4 {[%clk 0:00:15.4]} 0-1

[Event "*** Titled Tuesday Blitz"]
[Site "Chess.com"]
[Date "2020.04.14"]
[Round "5"]
[White "nonscitis"]
[Black "WastefulJustice"]
[Result "1-0"]
[WhiteElo "2669"]
[BlackElo "2445"]
[TimeControl "180+1"]
[EndTime "10:51:27 PDT"]
[Termination "nonscitis won by resignation"]

1. d4 {[%clk 0:03:00.9]} 1... Nf6 {[%clk 0:02:59.7]} 2. c4 {[%clk 0:03:00]} 2...
e6 {[%clk 0:02:59.9]} 3. Nf3 {[%clk 0:02:59.5]} 3... d5 {[%clk 0:02:59.4]} 4.
Nc3 {[%clk 0:02:58.7]} 4... Be7 {[%clk 0:02:58.8]} 5. Bg5 {[%clk 0:02:56.5]}
5... O-O {[%clk 0:02:57.8]} 6. cxd5 {[%clk 0:02:55.3]} 6... exd5 {[%clk
0:02:54.9]} 7. e3 {[%clk 0:02:54.8]} 7... c6 {[%clk 0:02:53.7]} 8. Bd3 {[%clk
0:02:54.1]} 8... Nbd7 {[%clk 0:02:49.2]} 9. O-O {[%clk 0:02:52.8]} 9... Re8
{[%clk 0:02:38.8]} 10. a3 {[%clk 0:02:22.9]} 10... Nf8 {[%clk 0:02:36.8]} 11.
Qc2 {[%clk 0:02:18.7]} 11... g6 {[%clk 0:02:35.1]} 12. b4 {[%clk 0:02:12.7]}
12... Ne6 {[%clk 0:02:31.2]} 13. Bh4 {[%clk 0:02:11.4]} 13... a6 {[%clk
0:02:25.6]} 14. Rab1 {[%clk 0:02:10.2]} 14... Ng7 {[%clk 0:02:18]} 15. a4 {[%clk
0:02:05.5]} 15... Bf5 {[%clk 0:02:17.7]} 16. b5 {[%clk 0:02:01.9]} 16... axb5
{[%clk 0:02:15.6]} 17. axb5 {[%clk 0:02:01.1]} 17... Bxd3 {[%clk 0:02:15.3]} 18.
Qxd3 {[%clk 0:02:00.5]} 18... Nf5 {[%clk 0:02:15.4]} 19. Bxf6 {[%clk 0:01:55.9]}
19... Bxf6 {[%clk 0:02:15.4]} 20. bxc6 {[%clk 0:01:56.1]} 20... bxc6 {[%clk
0:02:16.3]} 21. Rfc1 {[%clk 0:01:55.8]} 21... Nd6 {[%clk 0:01:28.7]} 22. Nd2
{[%clk 0:01:52.7]} 22... h5 {[%clk 0:01:24.8]} 23. Ne2 {[%clk 0:01:45.7]} 23...
Qd7 {[%clk 0:01:03.2]} 24. Qc2 {[%clk 0:01:40.9]} 24... Ra6 {[%clk 0:00:58.9]}
25. Nb3 {[%clk 0:01:39]} 25... Qa7 {[%clk 0:00:46.1]} 26. Ra1 {[%clk 0:01:23.4]}
26... Nc4 {[%clk 0:00:41.2]} 27. Rxa6 {[%clk 0:01:19.6]} 27... Qxa6 {[%clk
0:00:41.1]} 28. Nf4 {[%clk 0:01:18.6]} 28... Rb8 {[%clk 0:00:35.4]} 29. Nc5
{[%clk 0:00:54.7]} 29... Qc8 {[%clk 0:00:32.1]} 30. Rb1 {[%clk 0:00:33.5]} 30...
Kg7 {[%clk 0:00:20.7]} 31. Nce6+ {[%clk 0:00:24.9]} 31... Kh7 {[%clk 0:00:10]}
32. Rxb8 {[%clk 0:00:17.6]} 32... Qxb8 {[%clk 0:00:10.2]} 33. Nxh5 {[%clk
0:00:14.8]} 33... Bh8 {[%clk 0:00:03.9]} 34. Nhf4 {[%clk 0:00:14.4]} 34... Na3
{[%clk 0:00:02.7]} 35. Ng5+ {[%clk 0:00:11.9]} 35... Kh6 {[%clk 0:00:01.7]} 36.
Nxf7+ {[%clk 0:00:11.9]} 36... Kg7 {[%clk 0:00:02.1]} 37. Qxg6+ {[%clk
0:00:11.2]} 37... Kf8 {[%clk 0:00:02.5]} 38. g3 {[%clk 0:00:09.1]} 38... Qb1+
{[%clk 0:00:01.3]} 39. Qxb1 {[%clk 0:00:07.9]} 39... Nxb1 {[%clk 0:00:02.2]} 40.
Nxh8 {[%clk 0:00:08.3]} 1-0

[Event "*** Titled Tuesday Blitz"]
[Site "Chess.com"]
[Date "2020.04.14"]
[Round "5"]
[White "AshotParvanyan"]
[Black "blazingbanana"]
[Result "1-0"]
[WhiteElo "2592"]
[BlackElo "2400"]
[TimeControl "180+1"]
[EndTime "10:51:27 PDT"]
[Termination "AshotParvanyan won by checkmate"]

1. Nf3 {[%clk 0:03:00.9]} 1... d5 {[%clk 0:02:59.2]} 2. g3 {[%clk 0:02:54.9]}
2... c6 {[%clk 0:03:00.1]} 3. Bg2 {[%clk 0:02:54.4]} 3... Nf6 {[%clk 0:03:01]}
4. O-O {[%clk 0:02:53.6]} 4... g6 {[%clk 0:03:00.9]} 5. c4 {[%clk 0:02:46.7]}
5... Bg7 {[%clk 0:03:00]} 6. d4 {[%clk 0:02:47]} 6... O-O {[%clk 0:02:58.7]} 7.
Nbd2 {[%clk 0:02:46.1]} 7... Bf5 {[%clk 0:02:57.9]} 8. b3 {[%clk 0:02:43.7]}
8... Nbd7 {[%clk 0:02:56.7]} 9. Bb2 {[%clk 0:02:42.1]} 9... Rc8 {[%clk
0:02:54.8]} 10. Rc1 {[%clk 0:02:41.4]} 10... Qa5 {[%clk 0:02:50]} 11. a3 {[%clk
0:02:39.3]} 11... Rfd8 {[%clk 0:02:46.9]} 12. b4 {[%clk 0:02:32.7]} 12... Qc7
{[%clk 0:02:45.4]} 13. Qb3 {[%clk 0:02:32.2]} 13... dxc4 {[%clk 0:02:39.1]} 14.
Nxc4 {[%clk 0:02:29.4]} 14... Be6 {[%clk 0:02:36.4]} 15. Ng5 {[%clk 0:01:55.4]}
15... Nf8 {[%clk 0:02:29.7]} 16. Nxe6 {[%clk 0:01:53.5]} 16... Nxe6 {[%clk
0:02:30.6]} 17. Rfd1 {[%clk 0:01:51.5]} 17... Nd5 {[%clk 0:02:11.1]} 18. Ne5
{[%clk 0:01:05.1]} 18... Qb6 {[%clk 0:01:36.1]} 19. e3 {[%clk 0:00:55]} 19... a5
{[%clk 0:01:33.5]} 20. Nc4 {[%clk 0:00:53.5]} 20... Qa6 {[%clk 0:01:23.1]} 21.
Nxa5 {[%clk 0:00:50.5]} 21... b5 {[%clk 0:01:06.3]} 22. Nxc6 {[%clk 0:00:32.3]}
22... Rxc6 {[%clk 0:01:03.8]} 23. Bxd5 {[%clk 0:00:30.9]} 23... Rxc1 {[%clk
0:01:01.7]} 24. Rxc1 {[%clk 0:00:31.8]} 24... Ng5 {[%clk 0:01:00.2]} 25. h4
{[%clk 0:00:28.2]} 25... Qd6 {[%clk 0:00:57.1]} 26. hxg5 {[%clk 0:00:21.7]}
26... Qxd5 {[%clk 0:00:55.7]} 27. Qxd5 {[%clk 0:00:21.6]} 27... Rxd5 {[%clk
0:00:56.1]} 28. Rc8+ {[%clk 0:00:19.4]} 28... Bf8 {[%clk 0:00:55.2]} 29. f4
{[%clk 0:00:17.5]} 29... f6 {[%clk 0:00:43.8]} 30. e4 {[%clk 0:00:17]} 30... Rd7
{[%clk 0:00:41.9]} 31. d5 {[%clk 0:00:15.3]} 31... fxg5 {[%clk 0:00:40.3]} 32.
fxg5 {[%clk 0:00:16.2]} 32... Kf7 {[%clk 0:00:37.9]} 33. Kf2 {[%clk 0:00:13.3]}
33... h6 {[%clk 0:00:33.1]} 34. gxh6 {[%clk 0:00:11.3]} 34... Bxh6 {[%clk
0:00:32.3]} 35. Rc5 {[%clk 0:00:10.8]} 35... e6 {[%clk 0:00:29.5]} 36. Rxb5
{[%clk 0:00:10]} 36... exd5 {[%clk 0:00:26.8]} 37. exd5 {[%clk 0:00:10.9]} 37...
Ke7 {[%clk 0:00:22.2]} 38. Be5 {[%clk 0:00:10]} 38... Rd8 {[%clk 0:00:19.8]} 39.
Kf3 {[%clk 0:00:09.8]} 39... Rf8+ {[%clk 0:00:18.1]} 40. Ke4 {[%clk 0:00:09.3]}
40... Rf1 {[%clk 0:00:17.8]} 41. Rb7+ {[%clk 0:00:09.4]} 41... Ke8 {[%clk
0:00:16.3]} 42. d6 {[%clk 0:00:09.6]} 42... Bg5 {[%clk 0:00:14.8]} 43. Kd5
{[%clk 0:00:08.9]} 43... Rd1+ {[%clk 0:00:10.2]} 44. Ke6 {[%clk 0:00:08.8]}
44... Bd8 {[%clk 0:00:08.9]} 45. Rh7 {[%clk 0:00:07.4]} 45... Kf8 {[%clk
0:00:04.7]} 46. Rh8# {[%clk 0:00:06.9]} 1-0